[Event "*** Titled Tuesday Blitz"]
[Site "Chess.com"]
[Date "2021.03.02"]
[Round "6"]
[White "AtabayevSaparmyrat"]
[Black "Konavets"]
[Result "0-1"]
[WhiteElo "2730"]
[BlackElo "2938"]
[TimeControl "180+1"]
[EndTime "11:08:18 PST"]
[Termination "Konavets won by resignation"]

1. e4 {[%clk 0:02:59.7]} 1... g6 {[%clk 0:02:59.3]} 2. d4 {[%clk 0:02:59.8]}
2... c6 {[%clk 0:03:00]} 3. Nc3 {[%clk 0:03:00.7]} 3... d5 {[%clk 0:03:00.3]} 4.
Nf3 {[%clk 0:03:01.6]} 4... Bg4 {[%clk 0:03:00.5]} 5. Be3 {[%clk 0:02:55.4]}
5... Bg7 {[%clk 0:02:59.7]} 6. h3 {[%clk 0:02:55.4]} 6... Bxf3 {[%clk 0:03:00]}
7. Qxf3 {[%clk 0:02:56.3]} 7... e6 {[%clk 0:03:00.6]} 8. O-O-O {[%clk
0:02:55.3]} 8... Nf6 {[%clk 0:02:59.7]} 9. g4 {[%clk 0:02:44.1]} 9... Nxe4
{[%clk 0:02:58.5]} 10. Nxe4 {[%clk 0:02:44.8]} 10... dxe4 {[%clk 0:02:59.4]} 11.
Qxe4 {[%clk 0:02:44.6]} 11... Qd5 {[%clk 0:03:00.3]} 12. Qxd5 {[%clk 0:02:41.1]}
12... cxd5 {[%clk 0:03:01.2]} 13. c4 {[%clk 0:02:41.2]} 13... dxc4 {[%clk
0:02:58.9]} 14. d5 {[%clk 0:02:32.4]} 14... exd5 {[%clk 0:02:44.1]} 15. Rxd5
{[%clk 0:02:31.4]} 15... O-O {[%clk 0:02:44.4]} 16. Bxc4 {[%clk 0:02:25]} 16...
Rc8 {[%clk 0:02:42.7]} 17. b3 {[%clk 0:02:23.2]} 17... a6 {[%clk 0:02:32.8]} 18.
Rhd1 {[%clk 0:02:18]} 18... Nc6 {[%clk 0:02:28.1]} 19. Kb1 {[%clk 0:02:10.3]}
19... b5 {[%clk 0:02:02.9]} 20. Be2 {[%clk 0:02:10.4]} 20... Nb4 {[%clk
0:02:02.9]} 21. Rc5 {[%clk 0:02:05.6]} 21... Bf8 {[%clk 0:01:48.9]} 22. Rxc8
{[%clk 0:02:01.2]} 22... Rxc8 {[%clk 0:01:49.8]} 23. Rc1 {[%clk 0:01:42.8]}
23... Re8 {[%clk 0:01:48]} 24. Bf3 {[%clk 0:01:35.8]} 24... Nd3 {[%clk
0:01:47.3]} 25. Rc7 {[%clk 0:01:30.1]} 25... Rd8 {[%clk 0:01:28.6]} 26. Bg5
{[%clk 0:01:19.4]} 26... Rd4 {[%clk 0:01:27.9]} 27. Be3 {[%clk 0:01:06.2]} 27...
Rd6 {[%clk 0:01:23.2]} 28. Rc6 {[%clk 0:00:48.1]} 28... Kg7 {[%clk 0:00:45.2]}
29. Rxd6 {[%clk 0:00:41.1]} 29... Bxd6 {[%clk 0:00:46.1]} 30. Bb7 {[%clk
0:00:41.8]} 30... Nc5 {[%clk 0:00:37.2]} 31. Bc8 {[%clk 0:00:41.3]} 31... a5
{[%clk 0:00:35.3]} 32. Kc2 {[%clk 0:00:38.2]} 32... Kf6 {[%clk 0:00:35.3]} 33.
Bd4+ {[%clk 0:00:31.5]} 33... Kg5 {[%clk 0:00:32.9]} 34. Be3+ {[%clk 0:00:17.7]}
34... Kh4 {[%clk 0:00:32.7]} 35. g5 {[%clk 0:00:18]} 35... Ne6 {[%clk 0:00:19]}
36. Bd7 {[%clk 0:00:12]} 36... b4 {[%clk 0:00:19.4]} 37. Kd3 {[%clk 0:00:10.2]}
37... Be7 {[%clk 0:00:11.7]} 38. f4 {[%clk 0:00:08.1]} 38... Kxh3 {[%clk
0:00:06.8]} 39. Ke4 {[%clk 0:00:07.9]} 39... Kg3 {[%clk 0:00:06.8]} 40. Bxe6
{[%clk 0:00:07.4]} 40... fxe6 {[%clk 0:00:06.7]} 41. Ke5 {[%clk 0:00:08.3]}
41... Kf3 {[%clk 0:00:05.7]} 42. Bc1 {[%clk 0:00:08.7]} 42... Bd8 {[%clk
0:00:04.8]} 43. Kxe6 {[%clk 0:00:08.1]} 43... Ke4 {[%clk 0:00:03.9]} 44. Kf7
{[%clk 0:00:01.3]} 44... Bc7 {[%clk 0:00:04]} 45. Kg7 {[%clk 0:00:01.3]} 45...
Bxf4 {[%clk 0:00:04.2]} 46. Bxf4 {[%clk 0:00:01.6]} 46... Kxf4 {[%clk
0:00:05.1]} 47. Kxh7 {[%clk 0:00:02.5]} 47... Kxg5 {[%clk 0:00:05.6]} 48. Kg7
{[%clk 0:00:03.4]} 48... Kf5 {[%clk 0:00:06.2]} 49. Kf7 {[%clk 0:00:03.6]} 49...
g5 {[%clk 0:00:07.1]} 50. Ke7 {[%clk 0:00:04.3]} 50... g4 {[%clk 0:00:08]} 51.
Kd6 {[%clk 0:00:04.5]} 51... g3 {[%clk 0:00:08.9]} 52. Kc5 {[%clk 0:00:05.4]}
52... g2 {[%clk 0:00:09.6]} 53. Kb5 {[%clk 0:00:05]} 53... g1=Q {[%clk
0:00:10.5]} 54. Kxa5 {[%clk 0:00:05.9]} 54... Qc5+ {[%clk 0:00:10.6]} 55. Ka4
{[%clk 0:00:06.7]} 55... Ke5 {[%clk 0:00:08.5]} 56. a3 {[%clk 0:00:03.3]} 56...
Qb6 {[%clk 0:00:09.4]} 0-1

[Event "*** Titled Tuesday Blitz"]
[Site "Chess.com"]
[Date "2021.03.02"]
[Round "6"]
[White "sbouchet"]
[Black "Pintacara"]
[Result "1-0"]
[WhiteElo "2352"]
[BlackElo "2465"]
[TimeControl "180+1"]
[EndTime "11:08:18 PST"]
[Termination "sbouchet won on time"]

1. e4 {[%clk 0:03:00.9]} 1... c5 {[%clk 0:02:55.9]} 2. c3 {[%clk 0:03:00.8]}
2... Nf6 {[%clk 0:02:53.5]} 3. e5 {[%clk 0:03:01.1]} 3... Nd5 {[%clk 0:02:53.2]}
4. d4 {[%clk 0:03:01.7]} 4... e6 {[%clk 0:02:53.1]} 5. Nf3 {[%clk 0:03:01.5]}
5... Nc6 {[%clk 0:02:51.2]} 6. Be2 {[%clk 0:03:01]} 6... d6 {[%clk 0:02:51.3]}
7. O-O {[%clk 0:02:59.9]} 7... dxe5 {[%clk 0:02:50.8]} 8. dxe5 {[%clk
0:02:59.2]} 8... Qc7 {[%clk 0:02:50.3]} 9. Re1 {[%clk 0:02:55.9]} 9... Bd7
{[%clk 0:02:47.4]} 10. Na3 {[%clk 0:02:55.1]} 10... a6 {[%clk 0:02:44.4]} 11.
Nc4 {[%clk 0:02:31.3]} 11... b5 {[%clk 0:02:43.5]} 12. Ne3 {[%clk 0:02:21.2]}
12... Nxe3 {[%clk 0:02:39.6]} 13. Bxe3 {[%clk 0:02:20.4]} 13... Nxe5 {[%clk
0:02:39.5]} 14. Bf4 {[%clk 0:02:07.3]} 14... Nxf3+ {[%clk 0:02:23.6]} 15. Bxf3
{[%clk 0:02:08.2]} 15... Qxf4 {[%clk 0:02:22.5]} 16. Bxa8 {[%clk 0:02:08.3]}
16... Qb8 {[%clk 0:02:15.6]} 17. Qf3 {[%clk 0:01:56.6]} 17... Bd6 {[%clk
0:02:11.5]} 18. g3 {[%clk 0:01:53.4]} 18... O-O {[%clk 0:02:09.8]} 19. Bc6
{[%clk 0:01:54]} 19... Bc8 {[%clk 0:02:09.3]} 20. Rad1 {[%clk 0:01:47.7]} 20...
Qc7 {[%clk 0:01:57.4]} 21. Rd2 {[%clk 0:01:20.8]} 21... Be7 {[%clk 0:01:55]} 22.
h4 {[%clk 0:01:11.9]} 22... Rd8 {[%clk 0:01:48]} 23. Rxd8+ {[%clk 0:01:06.5]}
23... Qxd8 {[%clk 0:01:48.9]} 24. Rd1 {[%clk 0:01:06.3]} 24... Qc7 {[%clk
0:01:45.7]} 25. h5 {[%clk 0:00:46.8]} 25... h6 {[%clk 0:01:45.7]} 26. Be4 {[%clk
0:00:43.5]} 26... Bd7 {[%clk 0:01:38.4]} 27. Bc2 {[%clk 0:00:38.5]} 27... Bc6
{[%clk 0:01:36.3]} 28. Be4 {[%clk 0:00:36.1]} 28... Be8 {[%clk 0:01:35.7]} 29.
Qd3 {[%clk 0:00:32.6]} 29... c4 {[%clk 0:01:25.8]} 30. Qd2 {[%clk 0:00:27.8]}
30... Bc5 {[%clk 0:01:20.7]} 31. Kg2 {[%clk 0:00:26.2]} 31... Be7 {[%clk
0:01:19.1]} 32. Bf3 {[%clk 0:00:23.1]} 32... a5 {[%clk 0:01:16.9]} 33. Qd4
{[%clk 0:00:20.6]} 33... b4 {[%clk 0:01:04]} 34. Qe4 {[%clk 0:00:20.3]} 34...
Bf6 {[%clk 0:00:58.4]} 35. Qe3 {[%clk 0:00:17.7]} 35... bxc3 {[%clk 0:00:52]}
36. bxc3 {[%clk 0:00:18.6]} 36... a4 {[%clk 0:00:50.9]} 37. Rb1 {[%clk
0:00:18.4]} 37... Kf8 {[%clk 0:00:45]} 38. Rb7 {[%clk 0:00:18]} 38... Qa5 {[%clk
0:00:43.7]} 39. Qa7 {[%clk 0:00:16.7]} 39... Qxa7 {[%clk 0:00:36.4]} 40. Rxa7
{[%clk 0:00:17.6]} 40... Bxc3 {[%clk 0:00:36.5]} 41. Rc7 {[%clk 0:00:18.2]}
41... Bb5 {[%clk 0:00:31]} 42. Bc6 {[%clk 0:00:18]} 42... Bxc6+ {[%clk
0:00:14.9]} 43. Rxc6 {[%clk 0:00:18.9]} 43... a3 {[%clk 0:00:14.9]} 44. Rxc4
{[%clk 0:00:18.9]} 44... Bb2 {[%clk 0:00:15.3]} 45. Rc7 {[%clk 0:00:18.8]} 45...
Ke8 {[%clk 0:00:12.2]} 46. Rb7 {[%clk 0:00:18.9]} 46... Kf8 {[%clk 0:00:11.7]}
47. g4 {[%clk 0:00:18.8]} 47... Kg8 {[%clk 0:00:11.5]} 48. Kf3 {[%clk
0:00:19.4]} 48... g6 {[%clk 0:00:09.1]} 49. Ke4 {[%clk 0:00:19]} 49... Kg7
{[%clk 0:00:08.4]} 50. f4 {[%clk 0:00:17.2]} 50... gxh5 {[%clk 0:00:07.2]} 51.
gxh5 {[%clk 0:00:18.1]} 51... Kf6 {[%clk 0:00:07.2]} 52. Rb5 {[%clk 0:00:16.5]}
52... Kg7 {[%clk 0:00:06.9]} 53. f5 {[%clk 0:00:16]} 53... Kf6 {[%clk
0:00:07.3]} 54. fxe6 {[%clk 0:00:15.8]} 54... fxe6 {[%clk 0:00:08.2]} 55. Rb7
{[%clk 0:00:15.8]} 55... Kg5 {[%clk 0:00:07.6]} 56. Rb5+ {[%clk 0:00:16]} 56...
e5 {[%clk 0:00:07.7]} 57. Rb6 {[%clk 0:00:15.3]} 57... Kxh5 {[%clk 0:00:07.9]}
58. Kf5 {[%clk 0:00:15.9]} 58... Bc1 {[%clk 0:00:05.3]} 59. Rc6 {[%clk
0:00:15.6]} 59... Bf4 {[%clk 0:00:03.5]} 60. Rc3 {[%clk 0:00:14.5]} 60... Kh4
{[%clk 0:00:03.4]} 61. Rxa3 {[%clk 0:00:14.3]} 61... h5 {[%clk 0:00:03.2]} 62.
Rd3 {[%clk 0:00:14.2]} 1-0

[Event "*** Titled Tuesday Blitz"]
[Site "Chess.com"]
[Date "2021.03.02"]
[Round "6"]
[White "Julianos82"]
[Black "bilelou"]
[Result "1/2-1/2"]
[WhiteElo "2356"]
[BlackElo "2520"]
[TimeControl "180+1"]
[EndTime "11:08:20 PST"]
[Termination "Game drawn by agreement"]

1. d4 {[%clk 0:03:00.9]} 1... Nf6 {[%clk 0:02:57]} 2. Nf3 {[%clk 0:03:00.6]}
2... e6 {[%clk 0:02:47.9]} 3. Bg5 {[%clk 0:02:59.9]} 3... Be7 {[%clk 0:02:44.8]}
4. e3 {[%clk 0:02:58.8]} 4... O-O {[%clk 0:02:44.8]} 5. Nbd2 {[%clk 0:02:58.6]}
5... b6 {[%clk 0:02:45.4]} 6. Bd3 {[%clk 0:02:58.5]} 6... Bb7 {[%clk 0:02:45.6]}
7. O-O {[%clk 0:02:58.1]} 7... d5 {[%clk 0:01:45.8]} 8. Ne5 {[%clk 0:02:55.4]}
8... Nbd7 {[%clk 0:01:44.1]} 9. f4 {[%clk 0:02:38.1]} 9... Ne4 {[%clk
0:01:43.4]} 10. Bxe7 {[%clk 0:02:26]} 10... Qxe7 {[%clk 0:01:34]} 11. c3 {[%clk
0:02:17.5]} 11... Nxe5 {[%clk 0:01:32.7]} 12. fxe5 {[%clk 0:02:12.7]} 12... Nxd2
{[%clk 0:01:28.5]} 13. Qxd2 {[%clk 0:02:13.6]} 13... a5 {[%clk 0:01:26]} 14. Rf3
{[%clk 0:02:02.9]} 14... f5 {[%clk 0:01:08.7]} 15. exf6 {[%clk 0:01:58.8]} 15...
Rxf6 {[%clk 0:00:56.6]} 16. Raf1 {[%clk 0:01:57.1]} 16... Raf8 {[%clk
0:00:45.2]} 17. Qe2 {[%clk 0:01:55.8]} 17... h6 {[%clk 0:00:42.5]} 18. e4 {[%clk
0:01:46.2]} 18... Rxf3 {[%clk 0:00:28.3]} 19. Rxf3 {[%clk 0:01:47.1]} 19... Rxf3
{[%clk 0:00:23]} 20. Qxf3 {[%clk 0:01:39.2]} 20... Qf6 {[%clk 0:00:16.1]} 21. e5
{[%clk 0:01:15.1]} 21... Qg5 {[%clk 0:00:14.6]} 22. h3 {[%clk 0:01:03.2]} 22...
Bc6 {[%clk 0:00:12.1]} 23. Kh2 {[%clk 0:00:56.6]} 23... Be8 {[%clk 0:00:11.4]}
24. Qg4 {[%clk 0:00:45.8]} 24... Qxg4 {[%clk 0:00:07.9]} 25. hxg4 {[%clk
0:00:46.7]} 25... Kf7 {[%clk 0:00:05.3]} 26. Kg3 {[%clk 0:00:46]} 26... Ke7
{[%clk 0:00:05.9]} 27. Kf4 {[%clk 0:00:44.4]} 27... g5+ {[%clk 0:00:06.1]} 28.
Ke3 {[%clk 0:00:43.1]} 28... c5 {[%clk 0:00:07]} 29. g3 {[%clk 0:00:37.5]} 29...
c4 {[%clk 0:00:05.8]} 30. Bc2 {[%clk 0:00:36]} 30... b5 {[%clk 0:00:06.3]} 31.
Kd2 {[%clk 0:00:33.9]} 31... Bf7 {[%clk 0:00:06.1]} 32. a4 {[%clk 0:00:29.1]}
32... b4 {[%clk 0:00:06]} 33. b3 {[%clk 0:00:25.3]} 33... cxb3 {[%clk
0:00:05.1]} 34. Bxb3 {[%clk 0:00:26.2]} 34... bxc3+ {[%clk 0:00:04.8]} 35. Kxc3
{[%clk 0:00:27.1]} 35... Bg6 {[%clk 0:00:05.3]} 36. Bc2 {[%clk 0:00:23.2]} 36...
Be8 {[%clk 0:00:05]} 37. Kd3 {[%clk 0:00:21.6]} 37... Kd7 {[%clk 0:00:04.5]} 38.
Ke3 {[%clk 0:00:21.4]} 38... Kc7 {[%clk 0:00:04.9]} 39. Kd2 {[%clk 0:00:21.6]}
39... Kb6 {[%clk 0:00:05.2]} 40. Kc3 {[%clk 0:00:21.7]} 40... Bd7 {[%clk
0:00:05.8]} 41. Kb3 {[%clk 0:00:21]} 41... Bc8 {[%clk 0:00:06.3]} 42. Bg6 {[%clk
0:00:20.6]} 42... Kc7 {[%clk 0:00:05.3]} 43. Kc3 {[%clk 0:00:18.9]} 43... Bd7
{[%clk 0:00:03.6]} 44. Bc2 {[%clk 0:00:18.6]} 44... Kd8 {[%clk 0:00:03.8]} 45.
Kd3 {[%clk 0:00:18.8]} 45... Bc8 {[%clk 0:00:04.3]} 46. Ke3 {[%clk 0:00:19]}
46... Ba6 {[%clk 0:00:04.9]} 47. Bd3 {[%clk 0:00:18.9]} 47... Bb7 {[%clk
0:00:05.2]} 48. Bc2 {[%clk 0:00:18.9]} 48... Kc7 {[%clk 0:00:05.7]} 49. Bd3
{[%clk 0:00:19.1]} 49... Bc6 {[%clk 0:00:06.1]} 50. Bc2 {[%clk 0:00:19.3]} 50...
Bd7 {[%clk 0:00:07]} 51. Kd2 {[%clk 0:00:18.9]} 51... Be8 {[%clk 0:00:07.2]} 52.
Ke3 {[%clk 0:00:19.1]} 52... h5 {[%clk 0:00:07.9]} 53. Kf3 {[%clk 0:00:13.6]}
53... Kd8 {[%clk 0:00:06.3]} 54. gxh5 {[%clk 0:00:12.6]} 54... Bxh5+ {[%clk
0:00:07.2]} 55. g4 {[%clk 0:00:12.8]} 55... Be8 {[%clk 0:00:08.1]} 56. Ke3
{[%clk 0:00:12.7]} 56... Kc7 {[%clk 0:00:08.5]} 57. Kf3 {[%clk 0:00:12.5]} 57...
Bc6 {[%clk 0:00:09.1]} 58. Kg3 {[%clk 0:00:12.6]} 58... Bb7 {[%clk 0:00:10]} 59.
Kf3 {[%clk 0:00:12.9]} 59... Ba6 {[%clk 0:00:10.6]} 60. Kg3 {[%clk 0:00:13.1]}
60... Be2 {[%clk 0:00:10.7]} 61. Kh3 {[%clk 0:00:13.3]} 61... Kb6 {[%clk
0:00:10.5]} 62. Kg3 {[%clk 0:00:13.4]} 62... Bc4 {[%clk 0:00:09.9]} 63. Kh3
{[%clk 0:00:13.3]} 63... Ba6 {[%clk 0:00:10.1]} 64. Kg3 {[%clk 0:00:13.5]} 64...
Bc8 {[%clk 0:00:11]} 65. Kh3 {[%clk 0:00:13.8]} 65... Bd7 {[%clk 0:00:11.9]} 66.
Kg3 {[%clk 0:00:13.9]} 66... Bc8 {[%clk 0:00:11.3]} 67. Kh3 {[%clk 0:00:13.7]}
1/2-1/2

[Event "*** Titled Tuesday Blitz"]
[Site "Chess.com"]
[Date "2021.03.02"]
[Round "6"]
[White "horripile"]
[Black "Eltaj_Safarli"]
[Result "1-0"]
[WhiteElo "2711"]
[BlackElo "2900"]
[TimeControl "180+1"]
[EndTime "11:08:24 PST"]
[Termination "horripile won by resignation"]

1. Nf3 {[%clk 0:03:00.9]} 1... Nf6 {[%clk 0:02:59.8]} 2. g3 {[%clk 0:03:00.8]}
2... g6 {[%clk 0:03:00]} 3. Bg2 {[%clk 0:03:01.2]} 3... Bg7 {[%clk 0:03:00.9]}
4. O-O {[%clk 0:03:01.7]} 4... O-O {[%clk 0:03:01.8]} 5. d4 {[%clk 0:03:01.9]}
5... d5 {[%clk 0:03:02.1]} 6. c4 {[%clk 0:03:01.8]} 6... dxc4 {[%clk 0:03:03]}
7. Na3 {[%clk 0:03:00.7]} 7... a5 {[%clk 0:03:01.9]} 8. Nxc4 {[%clk 0:02:58.6]}
8... Be6 {[%clk 0:03:02.2]} 9. Nce5 {[%clk 0:02:51.5]} 9... a4 {[%clk
0:03:01.2]} 10. Bd2 {[%clk 0:02:46.2]} 10... Bd5 {[%clk 0:03:00.3]} 11. e3
{[%clk 0:02:33]} 11... Nbd7 {[%clk 0:02:56.7]} 12. Nxd7 {[%clk 0:02:27.4]} 12...
Qxd7 {[%clk 0:02:57.6]} 13. Bb4 {[%clk 0:02:20.2]} 13... Rfe8 {[%clk 0:02:54.6]}
14. Qe2 {[%clk 0:02:10.8]} 14... Ne4 {[%clk 0:02:38.3]} 15. Rfc1 {[%clk
0:01:59.8]} 15... c6 {[%clk 0:02:36.1]} 16. Ne1 {[%clk 0:01:57.6]} 16... Qe6
{[%clk 0:02:29.9]} 17. Nd3 {[%clk 0:01:53.5]} 17... Nf6 {[%clk 0:02:16.7]} 18.
Nc5 {[%clk 0:01:50.7]} 18... Qc8 {[%clk 0:02:16.9]} 19. e4 {[%clk 0:01:50.4]}
19... Be6 {[%clk 0:02:17]} 20. Qc2 {[%clk 0:01:41.2]} 20... Bh3 {[%clk
0:02:13.6]} 21. Bh1 {[%clk 0:01:31.9]} 21... e5 {[%clk 0:02:05]} 22. Nxa4 {[%clk
0:01:24.8]} 22... Rxa4 {[%clk 0:02:05.2]} 23. Qxa4 {[%clk 0:01:24.4]} 23... exd4
{[%clk 0:02:06.1]} 24. Re1 {[%clk 0:01:20.6]} 24... c5 {[%clk 0:02:03.7]} 25. e5
{[%clk 0:01:10.2]} 25... Ng4 {[%clk 0:01:55.3]} 26. Bxc5 {[%clk 0:01:07.1]}
26... b5 {[%clk 0:01:36.4]} 27. Qxb5 {[%clk 0:00:55.9]} 27... Rxe5 {[%clk
0:01:25.9]} 28. Rxe5 {[%clk 0:00:53.3]} 28... Bxe5 {[%clk 0:01:26.8]} 29. Qc6
{[%clk 0:00:28.7]} 29... Qd8 {[%clk 0:00:53.7]} 30. Qa8 {[%clk 0:00:27.2]} 30...
Qxa8 {[%clk 0:00:33.6]} 31. Bxa8 {[%clk 0:00:28.1]} 31... d3 {[%clk 0:00:30.8]}
32. Rd1 {[%clk 0:00:27.2]} 32... Bxb2 {[%clk 0:00:31.1]} 33. Rxd3 {[%clk
0:00:27.2]} 33... Ne5 {[%clk 0:00:32]} 34. Rb3 {[%clk 0:00:26.3]} 34... Bc1
{[%clk 0:00:29.9]} 35. Rb8+ {[%clk 0:00:24.2]} 35... Kg7 {[%clk 0:00:30]} 36.
Bd4 {[%clk 0:00:23.4]} 36... f6 {[%clk 0:00:30.3]} 37. Bxe5 {[%clk 0:00:21.9]}
37... fxe5 {[%clk 0:00:31.2]} 38. a4 {[%clk 0:00:22.4]} 38... Bd2 {[%clk
0:00:30.4]} 39. Bc6 {[%clk 0:00:19.9]} 39... Bf5 {[%clk 0:00:30.3]} 40. Rb5
{[%clk 0:00:17.9]} 40... e4 {[%clk 0:00:28]} 41. a5 {[%clk 0:00:17.5]} 41... e3
{[%clk 0:00:28.5]} 42. fxe3 {[%clk 0:00:16.8]} 42... Bxe3+ {[%clk 0:00:29.4]}
43. Kg2 {[%clk 0:00:17.3]} 43... Kf6 {[%clk 0:00:28.3]} 44. a6 {[%clk
0:00:17.5]} 44... h5 {[%clk 0:00:24.4]} 45. Rb7 {[%clk 0:00:16.6]} 45... Bc8
{[%clk 0:00:17.9]} 46. Rb3 {[%clk 0:00:12.6]} 46... Bd4 {[%clk 0:00:18]} 47. Bb7
{[%clk 0:00:12.7]} 47... Be6 {[%clk 0:00:18]} 48. Rd3 {[%clk 0:00:12.8]} 48...
Bc5 {[%clk 0:00:17]} 49. Ra3 {[%clk 0:00:13.3]} 49... Ba7 {[%clk 0:00:13.2]} 50.
Rd3 {[%clk 0:00:13]} 50... g5 {[%clk 0:00:11.4]} 51. Rd8 {[%clk 0:00:12.9]}
51... g4 {[%clk 0:00:10.7]} 52. Ra8 {[%clk 0:00:12.3]} 52... Bb6 {[%clk
0:00:08.9]} 53. a7 {[%clk 0:00:12.7]} 53... Bf7 {[%clk 0:00:04.8]} 54. Bc6
{[%clk 0:00:12.6]} 54... Bc5 {[%clk 0:00:03.5]} 55. Kf1 {[%clk 0:00:11.4]} 55...
Bc4+ {[%clk 0:00:02.5]} 56. Ke1 {[%clk 0:00:11.9]} 56... Bf7 {[%clk 0:00:03.1]}
57. Kd2 {[%clk 0:00:12]} 57... Bg1 {[%clk 0:00:03.4]} 58. Kd3 {[%clk 0:00:11.6]}
58... Bg6+ {[%clk 0:00:02.2]} 59. Kc4 {[%clk 0:00:11.5]} 59... Bf7+ {[%clk
0:00:03.1]} 60. Bd5 {[%clk 0:00:11.8]} 60... Bxd5+ {[%clk 0:00:01.6]} 61. Kxd5
{[%clk 0:00:12.7]} 61... Kg7 {[%clk 0:00:02.3]} 62. Rb8 {[%clk 0:00:12.4]} 62...
Bxa7 {[%clk 0:00:01.8]} 63. Rb7+ {[%clk 0:00:12.8]} 63... Kg6 {[%clk 0:00:02.7]}
64. Rxa7 {[%clk 0:00:13.4]} 64... h4 {[%clk 0:00:03.6]} 65. Ke4 {[%clk
0:00:13.5]} 65... hxg3 {[%clk 0:00:04.5]} 66. hxg3 {[%clk 0:00:14.1]} 66... Kg5
{[%clk 0:00:05.1]} 1-0

[Event "*** Titled Tuesday Blitz"]
[Site "Chess.com"]
[Date "2021.03.02"]
[Round "6"]
[White "Mr_Sinigami"]
[Black "tomsishere"]
[Result "1-0"]
[WhiteElo "2625"]
[BlackElo "2493"]
[TimeControl "180+1"]
[EndTime "11:08:25 PST"]
[Termination "Mr_Sinigami won by resignation"]

1. d4 {[%clk 0:03:00.9]} 1... b6 {[%clk 0:02:58.8]} 2. Bf4 {[%clk 0:02:59.9]}
2... Bb7 {[%clk 0:02:59]} 3. e3 {[%clk 0:03:00.2]} 3... Nf6 {[%clk 0:02:58.3]}
4. Nf3 {[%clk 0:03:00.2]} 4... e6 {[%clk 0:02:57.6]} 5. h3 {[%clk 0:02:59.8]}
5... Be7 {[%clk 0:02:58]} 6. Be2 {[%clk 0:02:59.2]} 6... O-O {[%clk 0:02:58.2]}
7. O-O {[%clk 0:02:59.5]} 7... d6 {[%clk 0:02:58.8]} 8. a4 {[%clk 0:02:58.8]}
8... a6 {[%clk 0:02:55.9]} 9. Na3 {[%clk 0:02:55]} 9... Nbd7 {[%clk 0:02:55.7]}
10. c4 {[%clk 0:02:50.9]} 10... Re8 {[%clk 0:02:52.9]} 11. a5 {[%clk 0:02:49.6]}
11... Bf8 {[%clk 0:02:47.8]} 12. b4 {[%clk 0:02:43.1]} 12... e5 {[%clk
0:02:46.6]} 13. Bh2 {[%clk 0:02:41.2]} 13... Ne4 {[%clk 0:02:34.5]} 14. Nb1
{[%clk 0:02:32.6]} 14... f5 {[%clk 0:02:32.1]} 15. Qc2 {[%clk 0:02:25.5]} 15...
g6 {[%clk 0:02:18.6]} 16. Nbd2 {[%clk 0:02:13]} 16... Bg7 {[%clk 0:02:14]} 17.
d5 {[%clk 0:02:12.7]} 17... Nxd2 {[%clk 0:02:09.2]} 18. Nxd2 {[%clk 0:02:11.1]}
18... e4 {[%clk 0:02:05.3]} 19. Rab1 {[%clk 0:02:10]} 19... bxa5 {[%clk
0:02:00.8]} 20. bxa5 {[%clk 0:02:09.1]} 20... Nc5 {[%clk 0:02:00.3]} 21. Nb3
{[%clk 0:02:08.7]} 21... Nxb3 {[%clk 0:01:56.4]} 22. Rxb3 {[%clk 0:02:06.5]}
22... Bc8 {[%clk 0:01:56]} 23. c5 {[%clk 0:02:05.8]} 23... Be5 {[%clk
0:01:38.3]} 24. Bxe5 {[%clk 0:02:01]} 24... Rxe5 {[%clk 0:01:39.2]} 25. cxd6
{[%clk 0:01:57.1]} 25... cxd6 {[%clk 0:01:36.8]} 26. Qc6 {[%clk 0:01:49.2]}
26... Ra7 {[%clk 0:01:16.9]} 27. Rc1 {[%clk 0:01:48.4]} 27... Re8 {[%clk
0:01:08.6]} 28. Rb8 {[%clk 0:01:46.7]} 28... Bd7 {[%clk 0:01:05.4]} 29. Rxd8
{[%clk 0:01:38.1]} 29... Bxc6 {[%clk 0:01:05.3]} 30. Rxd6 {[%clk 0:01:31.6]}
30... Bb5 {[%clk 0:01:04.8]} 31. Bxb5 {[%clk 0:01:11.5]} 31... axb5 {[%clk
0:01:05.7]} 32. a6 {[%clk 0:01:11.8]} 32... Rea8 {[%clk 0:01:02.8]} 33. Rcc6
{[%clk 0:01:11.1]} 33... b4 {[%clk 0:01:02.4]} 34. Rb6 {[%clk 0:01:10.9]} 34...
b3 {[%clk 0:01:02]} 35. Kh2 {[%clk 0:00:54.9]} 35... b2 {[%clk 0:00:55.6]} 36.
Rxb2 {[%clk 0:00:53.9]} 36... Rxa6 {[%clk 0:00:55.8]} 37. Rd7 {[%clk 0:00:51.6]}
37... R6a7 {[%clk 0:00:55.3]} 38. Rd6 {[%clk 0:00:47.2]} 38... Ra6 {[%clk
0:00:52.1]} 39. Rc6 {[%clk 0:00:38.1]} 39... Rxc6 {[%clk 0:00:44.7]} 40. dxc6
{[%clk 0:00:38.2]} 40... Rc8 {[%clk 0:00:44.1]} 41. Rc2 {[%clk 0:00:38.1]} 41...
Rc7 {[%clk 0:00:41.9]} 42. g4 {[%clk 0:00:36.2]} 42... Kf7 {[%clk 0:00:40]} 43.
gxf5 {[%clk 0:00:35.1]} 43... gxf5 {[%clk 0:00:39.8]} 44. Kg3 {[%clk 0:00:35.3]}
44... Ke6 {[%clk 0:00:32.2]} 45. Kf4 {[%clk 0:00:35.2]} 45... Kf6 {[%clk
0:00:27.1]} 46. Rc5 {[%clk 0:00:33.2]} 46... Ke6 {[%clk 0:00:23.6]} 47. h4
{[%clk 0:00:33.1]} 47... h5 {[%clk 0:00:20.4]} 48. Rxf5 {[%clk 0:00:32.7]} 48...
Rxc6 {[%clk 0:00:20.6]} 49. Rxh5 {[%clk 0:00:30.8]} 49... Rc2 {[%clk 0:00:21.1]}
50. Re5+ {[%clk 0:00:25.6]} 50... Kf6 {[%clk 0:00:20.4]} 51. Rf5+ {[%clk
0:00:25.1]} 51... Kg6 {[%clk 0:00:17.7]} 52. Kxe4 {[%clk 0:00:24.9]} 52... Rc4+
{[%clk 0:00:18]} 53. Kd5 {[%clk 0:00:23.8]} 53... Rxh4 {[%clk 0:00:17.6]} 54. e4
{[%clk 0:00:23.8]} 54... Rh3 {[%clk 0:00:16.8]} 55. f4 {[%clk 0:00:23.3]} 55...
Ra3 {[%clk 0:00:16.4]} 56. Rg5+ {[%clk 0:00:19.6]} 56... Kf6 {[%clk 0:00:15.6]}
57. e5+ {[%clk 0:00:19.9]} 57... Kf7 {[%clk 0:00:15.9]} 58. Ke4 {[%clk
0:00:19.8]} 58... Ke6 {[%clk 0:00:11.9]} 59. Rg6+ {[%clk 0:00:19.7]} 59... Kf7
{[%clk 0:00:10.4]} 60. Kf5 {[%clk 0:00:19.7]} 60... Ra1 {[%clk 0:00:10.6]} 61.
e6+ {[%clk 0:00:18]} 61... Ke8 {[%clk 0:00:09.1]} 62. Kf6 {[%clk 0:00:17.8]}
62... Rg1 {[%clk 0:00:04]} 63. Rxg1 {[%clk 0:00:16.8]} 63... Kd8 {[%clk
0:00:03.5]} 64. Rg8+ {[%clk 0:00:16]} 1-0